fUST/lending_fUST_20260109
["ID","MTS","AMOUNT","RATE_DAILY","PERIOD"]
[401104250,1767933040752,-1000.0,0.00013821,2]
[401104252,1767933040761,-1000.0,0.00013821,2]
[401104253,1767933040770,-1000.0,0.00013821,2]
[401104256,1767933040780,-1000.0,0.00013821,2]
[401104257,1767933040790,-1000.0,0.00013821,2]
[401104259,1767933040799,-1000.0,0.00013821,2]
[401104262,1767933040808,-1000.0,0.00013821,2]
[401104264,1767933040819,-377.00690714,0.00013821,2]
[401104266,1767933040828,-1000.0,0.00013821,2]
[401104268,1767933040837,-503.47038022,0.00013821,2]
[401104270,1767933040846,-611.67201338,0.00013821,2]
[401104272,1767933040855,-1000.0,0.00013821,2]
[401104274,1767933040863,-1000.0,0.00013821,2]
[401104276,1767933040873,-1000.0,0.00013821,2]
[401104278,1767933040881,-1000.0,0.00013821,2]
[401104280,1767933040890,-501.12756646,0.00013821,2]
[401104282,1767933040899,-1000.0,0.00013821,2]
[401104284,1767933040908,-1000.0,0.00013821,2]
[401104286,1767933040917,-1000.0,0.00013821,2]
[401104288,1767933040926,-1000.0,0.00013821,2]
[401104290,1767933040935,-5759.0,0.00013821,2]
[401104292,1767933040944,-1680.0,0.00013856,2]
[401104294,1767933040953,-5759.0,0.00013958,2]
[401104296,1767933040962,-163.67579894,0.00013973,2]
[401104298,1767933040971,-1000.0,0.00014,2]
[401104300,1767933040980,-500.0,0.00014048,2]
[401104302,1767933040989,-5759.0,0.00014095,2]
[401104303,1767933040998,-151.0,0.000141,2]
[401104304,1767933041008,-1221.24998564,0.0001419,2]
[401104305,1767933041017,-600.0,0.00014221,2]
[401104306,1767933041026,-5759.0,0.00014232,2]
[401104307,1767933041035,-1330.86,0.00014246,2]
[401104308,1767933041044,-849.26,0.00014246,2]
[401104309,1767933041053,-503.23906196,0.00014247,2]
[401104310,1767933041062,-503.80904989,0.00014247,2]
[401104311,1767933041071,-250.90544095,0.00014247,2]
[401104312,1767933041081,-806.60609523,0.00014247,2]
[401104313,1767933041090,-515.19045944,0.00014247,2]
[401104314,1767933041099,-503.16153113,0.00014247,2]
[401104315,1767933041108,-1000.0,0.00014247,2]
[401104316,1767933041118,-1000.0,0.00014247,2]
[401104317,1767933041127,-1000.0,0.00014247,2]
[401104318,1767933041136,-1001.24612348,0.00014247,2]
[401104319,1767933041145,-1000.0,0.00014247,2]
[401104320,1767933041154,-1000.0,0.00014247,2]
[401104321,1767933041163,-1000.0,0.00014247,2]
[401104322,1767933041172,-1001.00559058,0.00014247,2]
[401104323,1767933041181,-496.65509986,0.00014247,2]
[401104324,1767933041190,-1000.0,0.00014247,2]
[401104325,1767933041200,-1000.0,0.00014247,2]
[401104326,1767933041209,-1000.0,0.00014247,2]
[401104327,1767933041218,-1000.0,0.00014247,2]
[401104328,1767933041227,-500.5551329,0.00014247,2]
[401104329,1767933041236,-1000.0,0.00014247,2]
[401104330,1767933041245,-1000.0,0.00014247,2]
[401104331,1767933041254,-1000.0,0.00014247,2]
[401104332,1767933041263,-1000.0,0.00014247,2]
[401104333,1767933041274,-1000.0,0.00014247,2]
[401104334,1767933041283,-1000.0,0.00014247,2]
[401104335,1767933041292,-310.51778653,0.00014247,2]
[401104337,1767933041301,-1000.0,0.00014247,2]
[401104339,1767933041311,-1000.0,0.00014247,2]
[401104341,1767933041320,-1000.0,0.00014247,2]
[401104343,1767933041330,-1000.0,0.00014247,2]
[401104345,1767933041339,-224.62825875,0.00014247,2]
[401104347,1767933041348,-190.21102875,0.00014247,2]
[401104349,1767933041357,-1000.0,0.00014247,2]
[401104351,1767933041366,-1000.0,0.00014247,2]
[401104353,1767933041375,-501.34092346,0.00014247,2]
[401104355,1767933041385,-1000.0,0.00014247,2]
[401104357,1767933041394,-600.76093535,0.00014247,2]
[401104359,1767933041404,-1000.0,0.00014247,2]
[401104361,1767933041414,-541.74839336,0.00014247,2]
[401104363,1767933041424,-1000.0,0.00014247,2]
[401104365,1767933041433,-1000.0,0.00014247,2]
[401104367,1767933041442,-1001.58207676,0.00014247,2]
[401104369,1767933041451,-1000.0,0.00014247,2]
[401104371,1767933041460,-1000.0,0.00014247,2]
[401104373,1767933041469,-1000.0,0.00014247,2]
[401104375,1767933041478,-1000.0,0.00014247,2]
[401104377,1767933041487,-1000.0,0.00014247,2]
[401104379,1767933041497,-720.0,0.00014247,2]
[401104381,1767933041506,-151.0,0.000143,2]
[401104383,1767933041516,-500.0,0.00014322,2]
[401104385,1767933041525,-1330.86,0.00014368,2]
[401104387,1767933041534,-849.26,0.00014368,2]
[401104389,1767933041542,-3004.73,0.00014368,2]
[401104391,1767933041551,-1500.0,0.00014368,2]
[401104393,1767933041560,-505.59689034,0.00014368,2]
[401104395,1767933041569,-1500.0,0.00014368,2]
[401104397,1767933041578,-444.71129824,0.00014368,2]
[401104399,1767933041588,-1500.0,0.00014368,2]
[401104401,1767933041597,-1500.0,0.00014368,2]
[401104403,1767933041607,-1500.0,0.00014368,2]
[401104405,1767933041616,-501.86225518,0.00014368,2]
[401104407,1767933041625,-503.04657985,0.00014368,2]
[401104409,1767933041634,-1500.0,0.00014368,2]
[401104411,1767933041643,-1244.9070595,0.00014368,2]
[401104413,1767933041652,-1500.0,0.00014368,2]
[401104415,1767933041661,-591.29591497,0.00014368,2]
[401104417,1767933041670,-1500.0,0.00014368,2]
[401104419,1767933041679,-1500.0,0.00014368,2]
[401104421,1767933041688,-501.17979385,0.00014368,2]
[401104423,1767933041698,-1500.0,0.00014368,2]
[401104425,1767933041709,-5759.0,0.00014369,2]
[401104427,1767933041719,-5759.0,0.00014506,2]
[401104429,1767933041728,-5000.0,0.0001451,2]
[401104431,1767933041737,-500.0,0.00014596,2]
[401104433,1767933041747,-1330.86,0.00014642,2]
[401104435,1767933041756,-1330.86,0.00014642,2]
[401104437,1767933041765,-1330.86,0.00014642,2]
[401104439,1767933041774,-1330.86,0.00014642,2]
[401104441,1767933041785,-1330.86,0.00014642,2]
[401104443,1767933041794,-1330.86,0.00014642,2]
[401104445,1767933041804,-1330.86,0.00014642,2]
[401104447,1767933041813,-1330.86,0.00014642,2]
[401104449,1767933041822,-1330.86,0.00014642,2]
[401104451,1767933041831,-1330.86,0.00014642,2]
[401104453,1767933041840,-1330.86,0.00014642,2]
[401104455,1767933041849,-1330.86,0.00014642,2]
[401104457,1767933041858,-1330.86,0.00014642,2]
[401104459,1767933041867,-1330.9597785,0.00014642,2]
[401104461,1767933041875,-849.26,0.00014642,2]
[401104463,1767933041884,-849.26,0.00014642,2]
[401104465,1767933041893,-849.26,0.00014642,2]
[401104467,1767933041902,-849.26,0.00014642,2]
[401104485,1767933042055,-849.26,0.00014642,2]
[401104487,1767933042064,-849.26,0.00014642,2]
[401104489,1767933042074,-849.26,0.00014642,2]
[401104491,1767933042083,-849.26,0.00014642,2]
[401104493,1767933042092,-849.26,0.00014642,2]
[401104495,1767933042101,-849.26,0.00014642,2]
[401104497,1767933042110,-849.26,0.00014642,2]
[401104499,1767933042119,-849.26,0.00014642,2]
[401104500,1767933042128,-849.26,0.00014642,2]
[401104502,1767933042137,-849.38245362,0.00014642,2]
[401104504,1767933042146,-3004.73,0.00014642,2]
[401104506,1767933042155,-3004.73,0.00014642,2]
[401104508,1767933042164,-3004.73,0.00014642,2]
[401104510,1767933042174,-3004.73,0.00014642,2]
[401104512,1767933042182,-3004.73,0.00014642,2]
[401104514,1767933042191,-1212.02196422,0.00014642,2]
[401104520,1767933042233,-1792.70803578,0.00014642,2]
[401104522,1767933042242,-3004.73,0.00014642,2]
[401104524,1767933042251,-3004.73,0.00014642,2]
[401104526,1767933042260,-964.59838482,0.00014642,2]
[401104528,1767933042274,-2040.13161518,0.00014642,2]
[401104530,1767933042284,-3004.73,0.00014642,2]
[401104532,1767933042293,-3004.73,0.00014642,2]
[401104534,1767933042302,-3004.73,0.00014642,2]
[401104536,1767933042311,-3004.73,0.00014642,2]
[401104538,1767933042320,-3004.73,0.00014642,2]
[401104540,1767933042330,-3004.82533061,0.00014642,2]
[401104542,1767933042339,-151.0,0.00014642,2]
[401104544,1767933042349,-255481.618025,0.00014642,2]
[401104546,1767933042358,-5759.0,0.00014643,2]
[401104548,1767933042367,-325.36411663,0.00014698,2]
[401104550,1767933042376,-151.0,0.000147,2]
[401104552,1767933042386,-900.0,0.00014768,2]
[401104554,1767933042395,-5759.0,0.0001478,2]
[401104556,1767933042404,-551.97535149,0.00014792,2]
[401104558,1767933042413,-1500.0,0.00014795,2]
[401104560,1767933042422,-1500.0,0.00014795,2]
[401104561,1767933042434,-1500.0,0.00014795,2]
[401104563,1767933042443,-1500.0,0.00014795,2]
[401104565,1767933042453,-1500.0,0.00014795,2]
[401104567,1767933042462,-501.73018416,0.00014795,2]
[401104569,1767933042471,-1500.0,0.00014795,2]
[401104571,1767933042480,-1500.0,0.00014795,2]
[401104573,1767933042489,-1389.69129343,0.00014795,2]
[401104575,1767933042499,-1500.0,0.00014795,2]
[401104577,1767933042508,-1500.0,0.00014795,2]
[401104579,1767933042518,-1500.0,0.00014795,2]
[401104581,1767933042527,-500.0,0.00014795,2]
[401104583,1767933042536,-1500.0,0.00014795,2]
[401104585,1767933042545,-1227.43805299,0.00014795,2]
[401104588,1767933042554,-1099.9102998,0.00014795,2]
[401104591,1767933042563,-1500.0,0.00014795,2]
[401104593,1767933042572,-1500.0,0.00014795,2]
[401104596,1767933042581,-845.73139261,0.00014795,2]
[401104598,1767933042590,-1500.0,0.00014795,2]
[401104601,1767933042599,-1509.21687107,0.00014795,2]
[401104603,1767933042608,-1500.0,0.00014795,2]
[401104605,1767933042619,-1505.42705469,0.00014795,2]
[401104607,1767933042629,-646.68328603,0.00014795,2]
[401104609,1767933042637,-1500.0,0.00014795,2]
[401104611,1767933042646,-1503.75899236,0.00014795,2]
[401104613,1767933042655,-1500.0,0.00014795,2]
[401104615,1767933042665,-638.41119879,0.00014795,2]
[401104617,1767933042674,-1500.0,0.00014795,2]
[401104619,1767933042683,-1509.9151804,0.00014795,2]
[401104621,1767933042691,-500.0,0.0001487,2]
[401104623,1767933042700,-531.96144292,0.00014881,2]
[401104625,1767933042712,-524.32295748,0.00014881,2]
[401104626,1767933042722,-524.32295748,0.00014881,2]
[401104628,1767933042731,-524.32295748,0.00014881,2]
[401104630,1767933042739,-524.32295748,0.00014881,2]
[401104632,1767933042749,-524.32295748,0.00014881,2]
[401104634,1767933042758,-524.32295748,0.00014881,2]
[401104636,1767933042767,-524.32295748,0.00014881,2]
[401104638,1767933042776,-524.32295748,0.00014881,2]
[401104640,1767933042786,-524.32295748,0.00014881,2]
[401104642,1767933042795,-524.32295748,0.00014881,2]
[401104644,1767933042803,-524.32295748,0.00014881,2]
[401104645,1767933042812,-524.32295748,0.00014881,2]
[401104647,1767933042821,-524.32295748,0.00014881,2]
[401104649,1767933042830,-524.32295748,0.00014881,2]
[401104651,1767933042839,-524.32295748,0.00014881,2]
[401104653,1767933042848,-524.32295748,0.00014881,2]
[401104655,1767933042857,-524.32295748,0.00014881,2]
[401104657,1767933042866,-524.32295748,0.00014881,2]
[401104659,1767933042875,-524.32295748,0.00014881,2]
[401104661,1767933042884,-524.32295748,0.00014881,2]
[401104663,1767933042893,-524.32295748,0.00014881,2]
[401104665,1767933042902,-524.32295748,0.00014881,2]
[401104667,1767933042910,-524.32295748,0.00014881,2]
[401104669,1767933042919,-570.20121626,0.00014881,2]
[401104670,1767933042928,-570.20121626,0.00014881,2]
[401104672,1767933042937,-570.20121626,0.00014881,2]
[401104674,1767933042946,-570.20121626,0.00014881,2]
[401104676,1767933042954,-570.20121626,0.00014881,2]
[401104678,1767933042963,-570.20121626,0.00014881,2]
[401104680,1767933042972,-570.20121626,0.00014881,2]
[401104682,1767933042981,-570.20121626,0.00014881,2]
[401104684,1767933042991,-153.49989458,0.00014881,2]
[401104686,1767933043000,-100000.0,0.00014882,2]
[401104688,1767933043009,-2000.0,0.00014916,2]
[401104690,1767933043017,-2000.0,0.00014916,2]
[401104692,1767933043026,-2000.0,0.00014916,2]
[401104694,1767933043036,-2000.0,0.00014916,2]
[401104696,1767933043045,-2000.0,0.00014916,2]
[401104698,1767933043054,-2000.0,0.00014916,2]
[401104700,1767933043063,-2000.0,0.00014916,2]
[401104702,1767933043072,-506.27641738,0.00014916,2]
[401104704,1767933043080,-2000.0,0.00014916,2]
[401104706,1767933043089,-2000.0,0.00014916,2]
[401104708,1767933043098,-5759.0,0.00014917,2]
[401104709,1767933043106,-2420.64060424,0.00015,2]
[401104711,1767933043116,-2000.0,0.00015,2]
[401104713,1767933043124,-5759.0,0.00015054,2]
[401104715,1767933043133,-195.979906,0.00015068,2]
[401104717,1767933043142,-800.0,0.00015068,2]
[401104719,1767933043151,-151.0,0.000151,2]
[401104721,1767933043162,-500.0,0.00015144,2]
[401104723,1767933043171,-587.0,0.00015162,2]
[401104725,1767933043180,-5759.0,0.00015191,2]
[401104727,1767933043189,-155.566511,0.00015191,2]
[401104729,1767933043198,-151.0,0.000152,2]
[401104731,1767933043207,-1767.0,0.00015242,2]
[401104734,1767933043216,-1200.0,0.00015316,2]
[401104737,1767933043225,-5759.0,0.00015328,2]
[401104740,1767933043237,-285.260834,0.00015342,2]
[401104743,1767933043246,-2000.0,0.00015342,2]
[401104745,1767933043257,-2000.0,0.00015342,2]
[401104747,1767933043266,-2000.0,0.00015342,2]
[401104750,1767933043275,-258.8437266,0.00015342,2]
[401104752,1767933043284,-502.94143277,0.00015342,2]
[401104754,1767933043293,-476.33364724,0.00015342,2]
[401104756,1767933043302,-2000.0,0.00015342,2]
[401104758,1767933043311,-696.71136087,0.00015342,2]
[401104760,1767933043320,-2000.0,0.00015342,2]
[401104762,1767933043329,-1804.17801117,0.00015342,2]
[401104764,1767933043338,-1745.07051734,0.00015342,2]
[401104766,1767933043347,-2000.0,0.00015342,2]
[401104768,1767933043356,-2000.0,0.00015342,2]
[401104770,1767933043365,-2000.0,0.00015342,2]
[401104772,1767933043374,-1504.73054898,0.00015342,2]
[401104774,1767933043383,-483.90483421,0.00015342,2]
[401104775,1767933043392,-2000.0,0.00015342,2]
[401104777,1767933043402,-504.4978833,0.00015418,2]
[401104779,1767933043412,-5283.19982932,0.00015427,2]
[401104781,1767933043422,-6457.11230119,0.00015459,2]
[401104783,1767933043431,-2500.0,0.00015464,2]
[401104785,1767933043440,-2500.0,0.00015464,2]
[401104787,1767933043450,-2500.0,0.00015464,2]
[401104789,1767933043459,-2500.0,0.00015464,2]
[401104791,1767933043468,-2500.0,0.00015464,2]
[401104793,1767933043477,-2500.0,0.00015464,2]
[401104795,1767933043486,-2500.0,0.00015464,2]
[401104797,1767933043495,-2500.0,0.00015464,2]
[401104798,1767933043504,-2500.0,0.00015464,2]
[401104800,1767933043513,-5759.0,0.00015465,2]
[401104802,1767933043522,-5759.0,0.00015602,2]
[401104804,1767933043531,-864.0,0.00015672,2]
[401104806,1767933043540,-5759.0,0.00015739,2]
[401104808,1767933043550,-151.0,0.000158,2]
[401104810,1767933043559,-151.0,0.000158,2]
[401104812,1767933043569,-1500.0,0.00015864,2]
[401104814,1767933043578,-5759.0,0.00015876,2]
[401104815,1767933043587,-578.16970935,0.0001589,2]
[401104817,1767933043596,-1000.0,0.0001589,2]
[401104819,1767933043605,-2500.0,0.0001589,2]
[401104821,1767933043614,-2500.0,0.0001589,2]
[401104823,1767933043624,-2500.0,0.0001589,2]
[401104825,1767933043635,-947.49421984,0.0001589,2]
[401104827,1767933043644,-2500.0,0.0001589,2]
[401104829,1767933043653,-1456.95332704,0.0001589,2]
[401104831,1767933043662,-2000.0,0.00016,2]
[401104833,1767933043674,-3000.0,0.00016012,2]
[401104835,1767933043684,-3000.0,0.00016012,2]
[401104837,1767933043693,-3000.0,0.00016012,2]
[401104839,1767933043702,-3000.0,0.00016012,2]
[401104841,1767933043715,-1783.80150252,0.00016012,2]
[401104843,1767933043725,-3000.0,0.00016012,2]
[401104845,1767933043736,-5759.0,0.00016013,2]
[401104847,1767933043744,-5773.0,0.0001615,2]
[401104849,1767933043755,-1600.0,0.00016164,2]
[401104851,1767933043764,-151.0,0.000163,2]
[401104853,1767933043772,-1800.0,0.00016412,2]
[401104855,1767933043782,-979.022557,0.00016438,2]
[401104857,1767933043792,-979.022557,0.00016438,2]
[401104859,1767933043801,-979.022557,0.00016438,2]
[401104860,1767933043810,-419.868976,0.00016438,2]
[401104862,1767933043819,-979.022557,0.00016438,2]
[401104864,1767933043829,-419.868976,0.00016438,2]
[401104866,1767933043839,-419.868976,0.00016438,2]
[401104868,1767933043847,-419.868976,0.00016438,2]
[401104870,1767933043856,-151.0,0.00016438,2]
[401104872,1767933043865,-151.0,0.00016438,2]
[401104874,1767933043873,-164.14409414,0.00016438,2]
[401104876,1767933043883,-151.0,0.00016438,2]
[401104878,1767933043892,-151.0,0.00016438,2]
[401104880,1767933043901,-151.0,0.00016438,2]
[401104882,1767933043910,-151.0,0.00016438,2]
[401104884,1767933043919,-3000.0,0.00016438,2]
[401104886,1767933043928,-3000.0,0.00016438,2]
[401104888,1767933043937,-3000.0,0.00016438,2]
[401104890,1767933043946,-183.89,0.0001644,2]
[401104892,1767933043955,-183.89,0.0001644,2]
[401104893,1767933043964,-200.0,0.00016473,2]
[401104895,1767933043973,-151.0,0.000165,2]
[401104897,1767933043982,-3500.0,0.0001656,2]
[401104899,1767933043991,-3500.0,0.0001656,2]
[401104901,1767933044001,-3500.0,0.0001656,2]
[401104903,1767933044010,-3500.0,0.0001656,2]
[401104905,1767933044019,-3416.14528931,0.0001656,2]
[401104907,1767933044028,-823.0,0.00016635,2]
[401104909,1767933044036,-374.99593103,0.00016698,2]
[401104911,1767933044045,-151.0,0.000169,2]
[401104913,1767933044054,-1000.0,0.000169,2]
[401104915,1767933044062,-2100.0,0.0001696,2]
[401104917,1767933044071,-3500.0,0.00016986,2]
[401104919,1767933044080,-3500.0,0.00016986,2]
[401104921,1767933044089,-3500.0,0.00016986,2]
[401104923,1767933044098,-111422.20585083,0.00017,2]
[401104925,1767933044107,-151.0,0.00017,2]
[401104927,1767933044116,-151.0,0.00017,2]
[401104929,1767933044124,-167383.21631838,0.0001701,3]
[401104930,1767933044133,-2242.77749232,0.00017108,2]
[401104932,1767933044143,-495.04726907,0.00017108,2]
[401104934,1767933044152,-4000.0,0.00017108,2]
[401104936,1767933044161,-4000.0,0.00017108,2]
[401104938,1767933044171,-1000.0,0.00017239,2]
[401104940,1767933044180,-2400.0,0.0001726,2]
[401104942,1767933044189,-151.0,0.000173,2]
[401104944,1767933044198,-151.0,0.000174,2]
[401104946,1767933044207,-5000.0,0.00017412,2]
[401104948,1767933044216,-2400.0,0.00017508,2]
[401104950,1767933044225,-151.0,0.00017534,2]
[401104952,1767933044233,-181.573329,0.00017534,2]
[401104954,1767933044244,-4000.0,0.00017534,2]
[401104956,1767933044254,-4000.0,0.00017534,2]
[401104958,1767933044263,-4000.0,0.00017534,2]
[401104960,1767933044273,-273.16673251,0.00017571,2]
[401104962,1767933044282,-2135.97108924,0.000176,2]
[401104964,1767933044292,-4500.0,0.00017656,2]
[401104966,1767933044302,-4500.0,0.00017656,2]
[401104968,1767933044312,-400.0,0.00017842,2]
[401104970,1767933044321,-151.0,0.000179,2]
[401104972,1767933044331,-151.0,0.00018,2]
[401104974,1767933044340,-150919.32539666,0.00018,2]
[401104976,1767933044349,-3140.92195732,0.00018,5]
[401104978,1767933044359,-30003.68823938,0.00018,2]
[401104980,1767933044368,-744.72420012,0.00018056,2]
[401104982,1767933044377,-151.0,0.00018082,2]
[401104984,1767933044386,-4500.0,0.00018082,2]
[401104985,1767933044395,-4500.0,0.00018082,2]
[401104987,1767933044404,-4500.0,0.00018082,2]
[401104989,1767933044413,-5000.0,0.00018204,2]
[401104991,1767933044423,-4417.01439994,0.00018204,2]
[401104993,1767933044432,-1152.0,0.0001825,2]
[401104995,1767933044441,-6457.11230119,0.0001832,2]
[401104997,1767933044451,-5283.19982932,0.00018356,2]
[401104999,1767933044459,-301.71202862,0.00018356,2]
[401105001,1767933044468,-195.979906,0.00018493,2]
[401105003,1767933044478,-151.0,0.000185,2]
[401105005,1767933044487,-4548.75609021,0.00018571,2]
[401105007,1767933044496,-8078.59081622,0.00018571,2]
[401105009,1767933044506,-236.54644757,0.00018571,2]
[401105011,1767933044516,-946.18579028,0.00018571,2]
[401105013,1767933044525,-2128.91802813,0.00018571,2]
[401105015,1767933044535,-3784.74316111,0.00018571,2]
[401105017,1767933044544,-5913.66118924,0.00018571,2]
[401105019,1767933044553,-8507.15644039,0.00018571,2]
[401105021,1767933044563,-35714.32,0.000186,3]
[401105023,1767933044572,-5000.0,0.0001863,2]
[401105024,1767933044580,-5000.0,0.0001863,2]
[401105025,1767933044590,-5000.0,0.0001863,2]
[401105027,1767933044599,-424.62774543,0.00018698,2]
[401105028,1767933044608,-151.0,0.000187,2]
[401105029,1767933044618,-5500.0,0.00018752,2]
[401105030,1767933044627,-500.0,0.00018753,2]
[401105031,1767933044636,-151.53313049,0.00018753,2]
[401105032,1767933044645,-155.96722789,0.00018753,2]
[401105033,1767933044654,-2403.26771612,0.00018849,2]
[401105034,1767933044664,-5000.0,0.00018863,2]
[401105035,1767933044673,-150.44130278,0.0001889,2]
[401105036,1767933044682,-500.0,0.0001889,2]
[401105037,1767933044692,-152.38573524,0.0001889,2]
[401105038,1767933044701,-151.0,0.000189,2]
[401105039,1767933044714,-126040.06671999,0.000189,5]
[401105040,1767933044723,-82223.07254731,0.000189,2]
[401105041,1767933044732,-303.10001603,0.000189,2]
[401105042,1767933044741,-1000.0,0.00018963,2]
[401105043,1767933044751,-244.0,0.00018963,2]
[401105044,1767933044760,-356.52765787,0.00019,20]
[401105045,1767933044770,-2403.26771612,0.00019006,2]
[401105046,1767933044779,-594.03076357,0.00019027,2]
[401105047,1767933044790,-303.10001603,0.00019089,2]
[401105048,1767933044799,-150.61037759,0.00019164,2]
[401105049,1767933044808,-152.30400026,0.00019164,2]
[401105050,1767933044817,-353.0313,0.00019178,2]
[401105051,1767933044825,-353.0313,0.00019178,2]
[401105052,1767933044834,-353.0313,0.00019178,2]
[401105053,1767933044843,-200.0,0.00019178,2]
[401105055,1767933044851,-353.0313,0.00019178,2]
[401105057,1767933044861,-312.98,0.00019178,2]
[401105059,1767933044870,-221.941164,0.00019178,2]
[401105061,1767933044879,-221.941164,0.00019178,2]
[401105063,1767933044887,-221.941164,0.00019178,2]
[401105064,1767933044898,-221.941164,0.00019178,2]
[401105065,1767933044911,-151.0,0.00019178,2]
[401105066,1767933044921,-151.0,0.00019178,2]
[401105067,1767933044930,-5500.0,0.00019178,2]
[401105068,1767933044939,-3418.97723055,0.00019178,2]
[401105069,1767933044949,-5500.0,0.00019178,2]
[401105070,1767933044958,-2403.26771612,0.00019186,2]
[401105071,1767933044967,-498.89487953,0.00019205,5]
[401105072,1767933044976,-215.73943239,0.00019233,3]
[401105073,1767933044985,-1391.37,0.000193,2]
[401105074,1767933044995,-163.2,0.000193,2]
[401105075,1767933045004,-163.82,0.000193,2]
[401105077,1767933045013,-16429.49,0.000193,2]
[401105079,1767933045023,-167.54,0.000193,2]
[401105080,1767933045036,-6000.0,0.000193,2]
[401105081,1767933045045,-151.25281158,0.00019301,2]
[401105082,1767933045171,-151.38401694,0.00019301,2]
[401105083,1767933045180,-156.98949532,0.00019301,2]
[401105084,1767933045190,-202.82846202,0.00019301,2]
[401105085,1767933045199,-178.16186534,0.00019301,2]
[401105086,1767933045208,-151.0,0.000194,2]
[401105087,1767933045216,-151.0,0.000196,2]
[401105088,1767933045226,-2403.26771612,0.00019723,2]
[401105089,1767933045235,-6000.0,0.00019726,2]
[401105090,1767933045244,-878.11739551,0.00019726,2]
[401105091,1767933045254,-2403.26771612,0.00019825,2]
[401105092,1767933045263,-232.45700431,0.00019848,2]
[401105093,1767933045272,-221.941164,0.00019849,2]
[401105095,1767933045281,-221.941164,0.00019849,2]
[401105097,1767933045290,-221.941164,0.00019849,2]
[401105099,1767933045299,-221.941164,0.00019849,2]
[401105101,1767933045309,-979.022557,0.00019849,2]
[401105102,1767933045321,-979.022557,0.00019849,2]
[401105103,1767933045330,-979.022557,0.00019849,2]
[401105104,1767933045339,-419.868976,0.00019849,2]
[401105105,1767933045348,-979.022557,0.00019849,2]
[401105106,1767933045358,-419.868976,0.00019849,2]
[401105107,1767933045367,-419.868976,0.00019849,2]
[401105108,1767933045376,-419.868976,0.00019849,2]
[401105109,1767933045385,-151.0,0.00019849,2]
[401105110,1767933045394,-151.0,0.00019849,2]
[401105111,1767933045403,-151.0,0.0002,2]
[401105112,1767933045413,-300.00025089,0.0002,7]
[401105113,1767933045422,-77475.54069751,0.0002,2]
[401105114,1767933045432,-353.0313,0.0002,4]
[401105115,1767933045441,-353.0313,0.0002,4]
[401105116,1767933045450,-353.0313,0.0002,4]
[401105117,1767933045459,-353.0313,0.0002,4]
[401105118,1767933045469,-1613.0,0.00020023,2]
[401105119,1767933045478,-151.0,0.000202,4]
[401105120,1767933045488,-2403.26771612,0.0002026,2]
[401105121,1767933045498,-6500.0,0.00020274,2]
[401105122,1767933045507,-2403.26771612,0.00020348,2]
[401105123,1767933045516,-353.0313,0.00020411,5]
[401105124,1767933045527,-353.0313,0.00020411,5]
[401105125,1767933045536,-353.0313,0.00020411,5]
[401105126,1767933045546,-1764.82743647,0.00020577,2]
[401105127,1767933045556,-2403.26771612,0.0002065,2]
[401105128,1767933045565,-474.25955983,0.00020698,2]
[401105129,1767933045575,-1041.66666667,0.00020699,2]
[401105130,1767933045585,-151.0,0.000207,3]
[401105131,1767933045594,-7000.0,0.00020822,2]
[401105133,1767933045604,-519.33304827,0.00020824,5]
[401105134,1767933045613,-736.65011009,0.00020824,5]
[401105136,1767933045623,-2077.33219309,0.00020824,5]
[401105137,1767933045633,-4673.99743445,0.00020824,5]
[401105139,1767933045642,-2403.26771612,0.00020853,2]
[401105141,1767933045652,-350.1,0.00020858,2]
[401105143,1767933045662,-1000.0,0.00020859,2]
[401105144,1767933045671,-492.0,0.00020859,2]